[Event "*** Titled Tuesday Blitz"]
[Site "Chess.com"]
[Date "2020.05.19"]
[Round "8"]
[White "chessuriel"]
[Black "Anna_Ko_Rnd"]
[Result "1-0"]
[WhiteElo "2168"]
[BlackElo "1647"]
[TimeControl "180+1"]
[EndTime "13:36:56 PDT"]
[Termination "chessuriel won on time"]

1. e4 {[%clk 0:03:00.9]} 1... c5 {[%clk 0:02:59.6]} 2. Nf3 {[%clk 0:02:59.3]}
2... Nc6 {[%clk 0:02:59.1]} 3. Bc4 {[%clk 0:02:53.5]} 3... e6 {[%clk 0:02:57.6]}
4. d4 {[%clk 0:02:51.7]} 4... cxd4 {[%clk 0:02:57]} 5. Nxd4 {[%clk 0:02:51.2]}
5... a6 {[%clk 0:02:56.8]} 6. Nc3 {[%clk 0:02:48.8]} 6... b5 {[%clk 0:02:55.3]}
7. Bb3 {[%clk 0:02:48.4]} 7... Nf6 {[%clk 0:02:46.2]} 8. Nxc6 {[%clk 0:02:45.3]}
8... dxc6 {[%clk 0:02:45.5]} 9. Qxd8+ {[%clk 0:02:46.2]} 9... Kxd8 {[%clk
0:02:45.3]} 10. Bg5 {[%clk 0:02:46.8]} 10... Be7 {[%clk 0:02:44.8]} 11. O-O-O+
{[%clk 0:02:44.8]} 11... Ke8 {[%clk 0:02:39.7]} 12. Rhe1 {[%clk 0:02:18.8]}
12... h6 {[%clk 0:02:33.1]} 13. Bxf6 {[%clk 0:01:49.9]} 13... gxf6 {[%clk
0:02:31.7]} 14. a4 {[%clk 0:01:43.9]} 14... Rg8 {[%clk 0:02:29.3]} 15. g3 {[%clk
0:01:37.9]} 15... Bc5 {[%clk 0:02:21.3]} 16. Re2 {[%clk 0:01:35.1]} 16... e5
{[%clk 0:02:09.6]} 17. Rd3 {[%clk 0:01:30.4]} 17... Bh3 {[%clk 0:01:46.2]} 18.
Red2 {[%clk 0:01:28.9]} 18... b4 {[%clk 0:01:35.1]} 19. Nd1 {[%clk 0:01:24.9]}
19... Ke7 {[%clk 0:01:09.2]} 20. Ne3 {[%clk 0:01:19.4]} 20... Bd4 {[%clk
0:00:42.9]} 21. c3 {[%clk 0:01:04.3]} 21... bxc3 {[%clk 0:00:40.4]} 22. bxc3
{[%clk 0:01:05.2]} 22... Bc5 {[%clk 0:00:27.6]} 23. a5 {[%clk 0:00:52.1]} 23...
Ra7 {[%clk 0:00:23]} 24. Bc4 {[%clk 0:00:47.1]} 24... Rb8 {[%clk 0:00:21.2]} 25.
Kd1 {[%clk 0:00:36.3]} 25... Rb1+ {[%clk 0:00:18.9]} 26. Ke2 {[%clk 0:00:35.7]}
26... Ra1 {[%clk 0:00:17.1]} 27. g4 {[%clk 0:00:19.8]} 27... Bxe3 {[%clk
0:00:16.7]} 28. Rxe3 {[%clk 0:00:19.1]} 28... Bf1+ {[%clk 0:00:15.2]} 29. Kf3
{[%clk 0:00:18]} 29... Bxc4 {[%clk 0:00:15.1]} 30. Kg2 {[%clk 0:00:16]} 30...
Rxa5 {[%clk 0:00:13.8]} 31. Rh3 {[%clk 0:00:15.1]} 31... Be6 {[%clk 0:00:12.8]}
32. f3 {[%clk 0:00:14.6]} 32... Ra1 {[%clk 0:00:11.4]} 33. Rxh6 {[%clk
0:00:14.4]} 33... a5 {[%clk 0:00:11.7]} 34. Rh8 {[%clk 0:00:14.1]} 34... a4
{[%clk 0:00:11.8]} 35. Rdd8 {[%clk 0:00:14.2]} 35... Bd7 {[%clk 0:00:09.2]} 36.
Rb8 {[%clk 0:00:13.1]} 36... a3 {[%clk 0:00:08.9]} 37. g5 {[%clk 0:00:13.6]}
37... a2 {[%clk 0:00:08.3]} 38. gxf6+ {[%clk 0:00:12.9]} 38... Kxf6 {[%clk
0:00:07.4]} 39. h4 {[%clk 0:00:13.8]} 39... Re1 {[%clk 0:00:06.2]} 40. h5 {[%clk
0:00:12.9]} 40... a1=Q {[%clk 0:00:05.5]} 41. Rh6+ {[%clk 0:00:13.8]} 41... Kg7
{[%clk 0:00:04.6]} 42. Rd6 {[%clk 0:00:14]} 42... Qa2+ {[%clk 0:00:02.2]} 43.
Kg3 {[%clk 0:00:13.5]} 43... Rg1+ {[%clk 0:00:01.3]} 44. Kh4 {[%clk 0:00:14.4]}
1-0

[Event "*** Titled Tuesday Blitz"]
[Site "Chess.com"]
[Date "2020.05.19"]
[Round "8"]
[White "Karacsonyi_Gellert"]
[Black "Gennady_Kozlov"]
[Result "1-0"]
[WhiteElo "2471"]
[BlackElo "2578"]
[TimeControl "180+1"]
[EndTime "13:36:57 PDT"]
[Termination "Karacsonyi_Gellert won by checkmate"]

1. e4 {[%clk 0:03:00.9]} 1... e6 {[%clk 0:03:00]} 2. d4 {[%clk 0:03:00]} 2... d5
{[%clk 0:03:00.9]} 3. e5 {[%clk 0:03:00.9]} 3... c5 {[%clk 0:03:00.4]} 4. c3
{[%clk 0:03:01.2]} 4... Nc6 {[%clk 0:03:01.3]} 5. Nf3 {[%clk 0:03:01.6]} 5...
Bd7 {[%clk 0:03:02.2]} 6. Be2 {[%clk 0:03:01.1]} 6... Qb6 {[%clk 0:02:52]} 7. a3
{[%clk 0:02:57.4]} 7... cxd4 {[%clk 0:02:47.2]} 8. cxd4 {[%clk 0:02:56.1]} 8...
f6 {[%clk 0:02:48.1]} 9. O-O {[%clk 0:02:40.8]} 9... Nge7 {[%clk 0:02:43.8]} 10.
Nc3 {[%clk 0:02:37]} 10... Nf5 {[%clk 0:02:43.2]} 11. exf6 {[%clk 0:02:30.3]}
11... gxf6 {[%clk 0:02:42.4]} 12. b4 {[%clk 0:02:30.1]} 12... Ncxd4 {[%clk
0:02:38.5]} 13. Nxd4 {[%clk 0:02:31]} 13... Qxd4 {[%clk 0:02:38]} 14. Bh5+
{[%clk 0:02:31.8]} 14... Ke7 {[%clk 0:02:36.2]} 15. Qf3 {[%clk 0:02:17.1]} 15...
Nh4 {[%clk 0:02:22.3]} 16. Qg3 {[%clk 0:02:01.8]} 16... Nf5 {[%clk 0:02:18.5]}
17. Qf3 {[%clk 0:01:50.7]} 17... Rc8 {[%clk 0:01:51.2]} 18. Bb2 {[%clk
0:01:47.7]} 18... Nh4 {[%clk 0:01:38.7]} 19. Qg3 {[%clk 0:01:45.8]} 19... Nf5
{[%clk 0:01:34.3]} 20. Qf3 {[%clk 0:01:45.6]} 20... Bh6 {[%clk 0:01:30.2]} 21.
Rfe1 {[%clk 0:01:35.8]} 21... Kf8 {[%clk 0:01:24.4]} 22. Na4 {[%clk 0:01:16.1]}
22... Qh4 {[%clk 0:01:14.3]} 23. Nc5 {[%clk 0:01:16.2]} 23... Rxc5 {[%clk
0:01:03.9]} 24. bxc5 {[%clk 0:01:13.7]} 24... Rg8 {[%clk 0:01:04.5]} 25. g3
{[%clk 0:01:09.6]} 25... Qh3 {[%clk 0:01:01.4]} 26. Bxf6 {[%clk 0:01:02.8]}
26... Bg7 {[%clk 0:00:59.6]} 27. Bg4 {[%clk 0:00:49.3]} 27... Qxg4 {[%clk
0:00:52.5]} 28. Qxg4 {[%clk 0:00:45.5]} 28... Bxf6 {[%clk 0:00:53.4]} 29. Qf4
{[%clk 0:00:37.7]} 29... Bxa1 {[%clk 0:00:50.7]} 30. Rxa1 {[%clk 0:00:38.6]}
30... Bc6 {[%clk 0:00:48.3]} 31. Re1 {[%clk 0:00:36.7]} 31... Kf7 {[%clk
0:00:47.2]} 32. Qc7+ {[%clk 0:00:36.5]} 32... Ne7 {[%clk 0:00:44.1]} 33. f4
{[%clk 0:00:34.8]} 33... Re8 {[%clk 0:00:30.7]} 34. Qe5 {[%clk 0:00:28]} 34...
Nf5 {[%clk 0:00:29.8]} 35. g4 {[%clk 0:00:27.7]} 35... Ng7 {[%clk 0:00:29.6]}
36. f5 {[%clk 0:00:25.9]} 36... exf5 {[%clk 0:00:29.3]} 37. Qc7+ {[%clk
0:00:25.7]} 37... Kf6 {[%clk 0:00:29.3]} 38. Rxe8 {[%clk 0:00:25.6]} 38... Nxe8
{[%clk 0:00:29]} 39. Qf4 {[%clk 0:00:25.1]} 39... Ng7 {[%clk 0:00:27.9]} 40. g5+
{[%clk 0:00:22.9]} 40... Kg6 {[%clk 0:00:27.4]} 41. h4 {[%clk 0:00:23.8]} 41...
Kh5 {[%clk 0:00:25.7]} 42. Qd6 {[%clk 0:00:21.2]} 42... Kxh4 {[%clk 0:00:24.7]}
43. Qh6+ {[%clk 0:00:20.8]} 43... Nh5 {[%clk 0:00:25.2]} 44. Kf2 {[%clk
0:00:19.8]} 44... d4 {[%clk 0:00:24.5]} 45. g6 {[%clk 0:00:18.3]} 45... hxg6
{[%clk 0:00:23.6]} 46. Qxg6 {[%clk 0:00:19.2]} 46... d3 {[%clk 0:00:23.7]} 47.
Qd6 {[%clk 0:00:18.3]} 47... Be4 {[%clk 0:00:22.8]} 48. Qd8+ {[%clk 0:00:18.2]}
48... Kg4 {[%clk 0:00:22.6]} 49. Qg8+ {[%clk 0:00:18.6]} 49... Kf4 {[%clk
0:00:22.1]} 50. Qd8 {[%clk 0:00:18.4]} 50... Kg4 {[%clk 0:00:19.4]} 51. Qd6
{[%clk 0:00:18.5]} 51... Nf4 {[%clk 0:00:19.1]} 52. Qd7 {[%clk 0:00:14.6]} 52...
Nd5 {[%clk 0:00:18.9]} 53. Qg7+ {[%clk 0:00:13.7]} 53... Kf4 {[%clk 0:00:19]}
54. Qg3# {[%clk 0:00:13.9]} 1-0

[Event "*** Titled Tuesday Blitz"]
[Site "Chess.com"]
[Date "2020.05.19"]
[Round "8"]
[White "alertakobra"]
[Black "MomchilPetkov"]
[Result "0-1"]
[WhiteElo "2292"]
[BlackElo "2543"]
[TimeControl "180+1"]
[EndTime "13:36:57 PDT"]
[Termination "MomchilPetkov won on time"]

1. d4 {[%clk 0:02:30.3]} 1... Nf6 {[%clk 0:02:59.8]} 2. c4 {[%clk 0:02:29.8]}
2... e6 {[%clk 0:02:59.6]} 3. Nc3 {[%clk 0:02:29.9]} 3... Bb4 {[%clk 0:02:58.6]}
4. Qc2 {[%clk 0:02:30.6]} 4... Nc6 {[%clk 0:02:58.3]} 5. Nf3 {[%clk 0:02:29.5]}
5... d6 {[%clk 0:02:58.4]} 6. e4 {[%clk 0:02:28.8]} 6... Bxc3+ {[%clk
0:02:42.5]} 7. bxc3 {[%clk 0:02:28.2]} 7... e5 {[%clk 0:02:42.7]} 8. Bd3 {[%clk
0:02:28]} 8... O-O {[%clk 0:02:42.4]} 9. h3 {[%clk 0:02:27.6]} 9... h6 {[%clk
0:02:40.7]} 10. Be3 {[%clk 0:02:23.8]} 10... Re8 {[%clk 0:02:40.2]} 11. O-O
{[%clk 0:02:22.9]} 11... b6 {[%clk 0:02:39]} 12. c5 {[%clk 0:02:18.5]} 12...
bxc5 {[%clk 0:02:30.9]} 13. dxc5 {[%clk 0:02:14.8]} 13... d5 {[%clk 0:02:27.5]}
14. Rad1 {[%clk 0:02:14.3]} 14... Be6 {[%clk 0:02:03.5]} 15. exd5 {[%clk
0:02:10]} 15... Nxd5 {[%clk 0:02:04.4]} 16. Be4 {[%clk 0:01:47.3]} 16... Nce7
{[%clk 0:01:28.2]} 17. Bxd5 {[%clk 0:01:38]} 17... Nxd5 {[%clk 0:01:27.7]} 18.
Bxh6 {[%clk 0:01:32.4]} 18... gxh6 {[%clk 0:01:21.7]} 19. c4 {[%clk 0:01:32.2]}
19... c6 {[%clk 0:01:20.3]} 20. Nxe5 {[%clk 0:01:21.6]} 20... Nb4 {[%clk
0:01:10.9]} 21. Qc3 {[%clk 0:01:14.1]} 21... Qf6 {[%clk 0:01:05.3]} 22. f4
{[%clk 0:01:13.5]} 22... a5 {[%clk 0:01:00.9]} 23. f5 {[%clk 0:01:08.6]} 23...
Bxc4 {[%clk 0:00:51.6]} 24. Qg3+ {[%clk 0:01:05.7]} 24... Qg5 {[%clk 0:00:38.7]}
25. Qxg5+ {[%clk 0:01:04.5]} 25... hxg5 {[%clk 0:00:39.6]} 26. Nxc4 {[%clk
0:01:05]} 26... Re2 {[%clk 0:00:40.5]} 27. a3 {[%clk 0:00:59.2]} 27... Nd5
{[%clk 0:00:40.2]} 28. Rf2 {[%clk 0:00:52.6]} 28... Re4 {[%clk 0:00:36]} 29. Nb6
{[%clk 0:00:49]} 29... Rd8 {[%clk 0:00:36.1]} 30. Nxd5 {[%clk 0:00:47]} 30...
cxd5 {[%clk 0:00:37]} 31. Rc2 {[%clk 0:00:45.8]} 31... d4 {[%clk 0:00:30.9]} 32.
Rd3 {[%clk 0:00:42]} 32... Kg7 {[%clk 0:00:29.7]} 33. c6 {[%clk 0:00:41.7]}
33... Kf6 {[%clk 0:00:30.1]} 34. g4 {[%clk 0:00:41]} 34... Ke5 {[%clk
0:00:24.5]} 35. Kg2 {[%clk 0:00:38.3]} 35... Re1 {[%clk 0:00:20.6]} 36. c7
{[%clk 0:00:33.8]} 36... Rc8 {[%clk 0:00:21]} 37. Rc5+ {[%clk 0:00:31.2]} 37...
Ke4 {[%clk 0:00:20.9]} 38. Rf3 {[%clk 0:00:25.3]} 38... Re2+ {[%clk 0:00:20.5]}
39. Rf2 {[%clk 0:00:25.2]} 39... Kd3 {[%clk 0:00:19.1]} 40. Rxe2 {[%clk
0:00:20.3]} 40... Kxe2 {[%clk 0:00:20]} 41. Rc2+ {[%clk 0:00:18.4]} 41... Ke3
{[%clk 0:00:19.8]} 42. Rc6 {[%clk 0:00:18.2]} 42... d3 {[%clk 0:00:20]} 43. Rc5
{[%clk 0:00:14.2]} 43... d2 {[%clk 0:00:19.9]} 44. Rd5 {[%clk 0:00:14.5]} 44...
Rxc7 {[%clk 0:00:20.4]} 45. Re5+ {[%clk 0:00:14.6]} 45... Kd3 {[%clk 0:00:19.9]}
46. Rd5+ {[%clk 0:00:14.8]} 46... Ke3 {[%clk 0:00:20.3]} 47. Re5+ {[%clk
0:00:10.6]} 47... Kd4 {[%clk 0:00:20.6]} 48. Re8 {[%clk 0:00:10.3]} 48... Rc1
{[%clk 0:00:21]} 49. Rd8+ {[%clk 0:00:10.1]} 49... Kc3 {[%clk 0:00:21.5]} 0-1

[Event "*** Titled Tuesday Blitz"]
[Site "Chess.com"]
[Date "2020.05.19"]
[Round "8"]
[White "GoValya"]
[Black "ZarinaShafigullina"]
[Result "0-1"]
[WhiteElo "2194"]
[BlackElo "2342"]
[TimeControl "180+1"]
[EndTime "13:36:57 PDT"]
[Termination "ZarinaShafigullina won by checkmate"]

1. d4 {[%clk 0:03:00.9]} 1... Nf6 {[%clk 0:02:59.7]} 2. c4 {[%clk 0:03:00.7]}
2... e6 {[%clk 0:02:59.1]} 3. g3 {[%clk 0:03:00.6]} 3... c6 {[%clk 0:02:57.7]}
4. Bg2 {[%clk 0:02:58.1]} 4... d5 {[%clk 0:02:58.2]} 5. Nf3 {[%clk 0:02:58]}
5... Be7 {[%clk 0:02:57.9]} 6. O-O {[%clk 0:02:57.8]} 6... O-O {[%clk
0:02:58.4]} 7. Nc3 {[%clk 0:02:56.8]} 7... Nbd7 {[%clk 0:02:57.5]} 8. Nd2 {[%clk
0:02:55.3]} 8... Re8 {[%clk 0:02:46]} 9. e4 {[%clk 0:02:55.1]} 9... dxe4 {[%clk
0:02:46.3]} 10. Ndxe4 {[%clk 0:02:54.9]} 10... Nxe4 {[%clk 0:02:46.8]} 11. Nxe4
{[%clk 0:02:54.8]} 11... Nf6 {[%clk 0:02:47.7]} 12. Nc3 {[%clk 0:02:54.9]} 12...
Qb6 {[%clk 0:02:44.3]} 13. b3 {[%clk 0:02:44.7]} 13... Rd8 {[%clk 0:02:43]} 14.
Be3 {[%clk 0:02:44.2]} 14... Qc7 {[%clk 0:02:29.2]} 15. Qc2 {[%clk 0:02:42.5]}
15... e5 {[%clk 0:02:24.2]} 16. d5 {[%clk 0:02:29.3]} 16... cxd5 {[%clk
0:02:23.5]} 17. cxd5 {[%clk 0:02:29.6]} 17... Nxd5 {[%clk 0:02:13.4]} 18. Bxd5
{[%clk 0:02:03.7]} 18... Rxd5 {[%clk 0:02:12.1]} 19. Nxd5 {[%clk 0:01:47.8]}
19... Qxc2 {[%clk 0:02:09.9]} 20. Nxe7+ {[%clk 0:01:47.8]} 20... Kf8 {[%clk
0:02:01.9]} 21. Rac1 {[%clk 0:01:47.4]} 21... Qe4 {[%clk 0:02:00.6]} 22. Rxc8+
{[%clk 0:01:41.1]} 22... Rxc8 {[%clk 0:01:58.5]} 23. Nxc8 {[%clk 0:01:40.9]}
23... a6 {[%clk 0:01:34.3]} 24. Nd6 {[%clk 0:01:38]} 24... Qd5 {[%clk 0:01:25]}
25. Nc4 {[%clk 0:01:37.7]} 25... b5 {[%clk 0:01:21.6]} 26. Nb6 {[%clk
0:01:37.5]} 26... Qe4 {[%clk 0:01:12.8]} 27. Rc1 {[%clk 0:01:33.9]} 27... f6
{[%clk 0:01:05.1]} 28. Nd7+ {[%clk 0:01:31.6]} 28... Kf7 {[%clk 0:01:03.1]} 29.
Nc5 {[%clk 0:01:31.6]} 29... Qa8 {[%clk 0:01:00.9]} 30. Rd1 {[%clk 0:01:30.2]}
30... Qc6 {[%clk 0:00:42.4]} 31. Rd7+ {[%clk 0:01:29]} 31... Kg6 {[%clk
0:00:42.6]} 32. Ra7 {[%clk 0:01:24.2]} 32... Qd5 {[%clk 0:00:41.4]} 33. Rd7
{[%clk 0:01:18.5]} 33... Qc6 {[%clk 0:00:40.4]} 34. h4 {[%clk 0:01:11.5]} 34...
h5 {[%clk 0:00:39.7]} 35. b4 {[%clk 0:01:10.7]} 35... Qc8 {[%clk 0:00:23.2]} 36.
Kh2 {[%clk 0:01:03.9]} 36... Qg8 {[%clk 0:00:21.3]} 37. a3 {[%clk 0:00:55.2]}
37... Qa2 {[%clk 0:00:20.9]} 38. Ra7 {[%clk 0:00:52.4]} 38... Qxa3 {[%clk
0:00:19.6]} 39. Ne6 {[%clk 0:00:52]} 39... Kf5 {[%clk 0:00:19.1]} 40. Nxg7+
{[%clk 0:00:51.5]} 40... Ke4 {[%clk 0:00:18.7]} 41. Nxh5 {[%clk 0:00:50.4]}
41... Qxb4 {[%clk 0:00:17.4]} 42. Nxf6+ {[%clk 0:00:50.3]} 42... Kf3 {[%clk
0:00:14.4]} 43. Nd5 {[%clk 0:00:49.4]} 43... Qc4 {[%clk 0:00:12.5]} 44. Nf6
{[%clk 0:00:45]} 44... Qf1 {[%clk 0:00:11.4]} 45. g4 {[%clk 0:00:15.8]} 45...
Qg2# {[%clk 0:00:11]} 0-1

[Event "*** Titled Tuesday Blitz"]
[Site "Chess.com"]
[Date "2020.05.19"]
[Round "8"]
[White "Mitronych"]
[Black "KuzubovYuriy"]
[Result "0-1"]
[WhiteElo "2479"]
[BlackElo "2711"]
[TimeControl "180+1"]
[EndTime "13:36:59 PDT"]
[Termination "KuzubovYuriy won by resignation"]

1. e4 {[%clk 0:03:00.9]} 1... c6 {[%clk 0:02:59.6]} 2. d4 {[%clk 0:03:00]} 2...
d5 {[%clk 0:03:00.1]} 3. Nc3 {[%clk 0:03:00.1]} 3... dxe4 {[%clk 0:03:00.1]} 4.
Bc4 {[%clk 0:02:59.7]} 4... Nf6 {[%clk 0:02:58.9]} 5. f3 {[%clk 0:02:59.1]} 5...
Bf5 {[%clk 0:02:19.3]} 6. g4 {[%clk 0:02:58]} 6... Bg6 {[%clk 0:02:16]} 7. g5
{[%clk 0:02:51]} 7... Nd5 {[%clk 0:02:15]} 8. Nxe4 {[%clk 0:02:51]} 8... Nd7
{[%clk 0:02:12.1]} 9. Ne2 {[%clk 0:02:47.2]} 9... e5 {[%clk 0:02:10]} 10. h4
{[%clk 0:02:43.2]} 10... Be7 {[%clk 0:01:41.3]} 11. c3 {[%clk 0:02:39.6]} 11...
O-O {[%clk 0:01:34.4]} 12. Kf2 {[%clk 0:02:26.7]} 12... Kh8 {[%clk 0:01:18.6]}
13. N2g3 {[%clk 0:02:07.9]} 13... exd4 {[%clk 0:01:13.9]} 14. cxd4 {[%clk
0:02:06.6]} 14... f5 {[%clk 0:01:08.3]} 15. Nc3 {[%clk 0:01:56]} 15... f4 {[%clk
0:01:00.7]} 16. Nge4 {[%clk 0:01:56]} 16... N7b6 {[%clk 0:01:00.4]} 17. Bb3
{[%clk 0:01:46.9]} 17... Bh5 {[%clk 0:00:59.3]} 18. Qd3 {[%clk 0:01:35.9]} 18...
Ne3 {[%clk 0:00:50.7]} 19. Bd2 {[%clk 0:01:28.3]} 19... c5 {[%clk 0:00:49.4]}
20. Be6 {[%clk 0:01:22]} 20... c4 {[%clk 0:00:32.3]} 21. Qe2 {[%clk 0:01:18.4]}
21... Qxd4 {[%clk 0:00:32.5]} 22. Rac1 {[%clk 0:00:49.8]} 22... Rad8 {[%clk
0:00:31.6]} 23. Kg1 {[%clk 0:00:41.7]} 23... Qe5 {[%clk 0:00:22.4]} 24. Bh3
{[%clk 0:00:36.5]} 24... Nbd5 {[%clk 0:00:22.3]} 25. Nxd5 {[%clk 0:00:33.1]}
25... Qxd5 {[%clk 0:00:23.2]} 26. Rh2 {[%clk 0:00:28.5]} 26... Bg6 {[%clk
0:00:21.7]} 27. Rf2 {[%clk 0:00:22.2]} 27... Bxe4 {[%clk 0:00:19.7]} 28. fxe4
{[%clk 0:00:23.1]} 28... Qxe4 {[%clk 0:00:20.3]} 29. Bc3 {[%clk 0:00:18.4]}
29... Bc5 {[%clk 0:00:19.6]} 30. Qf3 {[%clk 0:00:15.8]} 30... Qxf3 {[%clk
0:00:19.1]} 31. Rxf3 {[%clk 0:00:16.7]} 31... Nd5+ {[%clk 0:00:18.5]} 32. Kh2
{[%clk 0:00:14.5]} 32... Rde8 {[%clk 0:00:17.5]} 33. Bf1 {[%clk 0:00:13.6]}
33... Nxc3 {[%clk 0:00:17.2]} 34. Rcxc3 {[%clk 0:00:13.6]} 34... b5 {[%clk
0:00:17.4]} 35. b3 {[%clk 0:00:13.5]} 35... Bd4 {[%clk 0:00:17.2]} 36. bxc4
{[%clk 0:00:13.3]} 36... Bxc3 {[%clk 0:00:17.3]} 37. Rxc3 {[%clk 0:00:14.2]}
37... bxc4 {[%clk 0:00:17.9]} 38. Rxc4 {[%clk 0:00:14.1]} 38... Rc8 {[%clk
0:00:18]} 39. Ra4 {[%clk 0:00:14.1]} 39... Rc7 {[%clk 0:00:18.3]} 40. h5 {[%clk
0:00:12.3]} 40... Rc5 {[%clk 0:00:17.3]} 41. Rxa7 {[%clk 0:00:07.2]} 41... Rxg5
{[%clk 0:00:17.4]} 42. a4 {[%clk 0:00:06.8]} 42... Rxh5+ {[%clk 0:00:17.5]} 43.
Kg2 {[%clk 0:00:07.2]} 43... f3+ {[%clk 0:00:17.9]} 44. Kf2 {[%clk 0:00:07.6]}
44... Rh2+ {[%clk 0:00:18.1]} 45. Kg3 {[%clk 0:00:08.2]} 45... Rh1 {[%clk
0:00:18.2]} 46. Kf2 {[%clk 0:00:08.1]} 46... Rh2+ {[%clk 0:00:18.5]} 47. Kg3
{[%clk 0:00:08.3]} 47... Ra2 {[%clk 0:00:18.5]} 48. Ra8 {[%clk 0:00:06.3]} 48...
Rxa8 {[%clk 0:00:17.9]} 0-1

[Event "*** Titled Tuesday Blitz"]
[Site "Chess.com"]
[Date "2020.05.19"]
[Round "8"]
[White "Marty435"]
[Black "Jenia84"]
[Result "1-0"]
[WhiteElo "2414"]
[BlackElo "2237"]
[TimeControl "180+1"]
[EndTime "13:37:00 PDT"]
[Termination "Marty435 won on time"]

1. e4 {[%clk 0:03:00.9]} 1... e5 {[%clk 0:02:58.1]} 2. Nf3 {[%clk 0:03:00]} 2...
Nc6 {[%clk 0:02:57.2]} 3. Bb5 {[%clk 0:03:00]} 3... Nf6 {[%clk 0:02:56]} 4. d3
{[%clk 0:02:58.5]} 4... Bc5 {[%clk 0:02:52.6]} 5. c3 {[%clk 0:02:58.4]} 5... d6
{[%clk 0:02:48.6]} 6. O-O {[%clk 0:02:56.3]} 6... O-O {[%clk 0:02:44.7]} 7. Nbd2
{[%clk 0:02:42.1]} 7... Ne7 {[%clk 0:02:39.1]} 8. Re1 {[%clk 0:02:35.9]} 8...
Ng6 {[%clk 0:02:38.2]} 9. Nf1 {[%clk 0:02:31.5]} 9... Ng4 {[%clk 0:02:25.2]} 10.
d4 {[%clk 0:02:29.7]} 10... exd4 {[%clk 0:02:22.1]} 11. cxd4 {[%clk 0:02:30.2]}
11... Bb4 {[%clk 0:02:21.1]} 12. Bd2 {[%clk 0:02:20]} 12... Bxd2 {[%clk
0:02:20.3]} 13. Qxd2 {[%clk 0:02:20.9]} 13... Bd7 {[%clk 0:02:18.3]} 14. Bd3
{[%clk 0:02:09.8]} 14... Re8 {[%clk 0:02:07.9]} 15. Ng3 {[%clk 0:02:04.1]} 15...
Qf6 {[%clk 0:01:57.8]} 16. Nh5 {[%clk 0:01:40.6]} 16... Qe7 {[%clk 0:01:53.2]}
17. h3 {[%clk 0:01:38]} 17... Nf6 {[%clk 0:01:52.3]} 18. Ng3 {[%clk 0:01:38.4]}
18... Bc6 {[%clk 0:01:47.1]} 19. Rac1 {[%clk 0:01:35]} 19... Rad8 {[%clk
0:01:44.1]} 20. d5 {[%clk 0:01:32.7]} 20... Bd7 {[%clk 0:01:40.1]} 21. Rxc7
{[%clk 0:01:30.2]} 21... Ne5 {[%clk 0:01:33.1]} 22. Nxe5 {[%clk 0:01:29]} 22...
Qxe5 {[%clk 0:01:33.1]} 23. Rec1 {[%clk 0:01:18.6]} 23... h5 {[%clk 0:01:25.6]}
24. Rxb7 {[%clk 0:00:56.4]} 24... h4 {[%clk 0:01:21.9]} 25. Nf5 {[%clk
0:00:51.5]} 25... Bxf5 {[%clk 0:01:19.2]} 26. exf5 {[%clk 0:00:52.4]} 26... Qxd5
{[%clk 0:01:17]} 27. Rcc7 {[%clk 0:00:48.7]} 27... Ne4 {[%clk 0:00:59.6]} 28.
Qc2 {[%clk 0:00:39.7]} 28... Nc5 {[%clk 0:00:51.6]} 29. Rxa7 {[%clk 0:00:19.8]}
29... Nxd3 {[%clk 0:00:44.8]} 30. Rxf7 {[%clk 0:00:17.8]} 30... Re1+ {[%clk
0:00:44]} 31. Kh2 {[%clk 0:00:17.7]} 31... Qe5+ {[%clk 0:00:42.4]} 32. g3 {[%clk
0:00:18.1]} 32... hxg3+ {[%clk 0:00:41.7]} 33. Kg2 {[%clk 0:00:18.2]} 33... Nf4+
{[%clk 0:00:37.7]} 34. Kf3 {[%clk 0:00:18.5]} 34... g2 {[%clk 0:00:20.7]} 35.
Rxg7+ {[%clk 0:00:14.3]} 35... Qxg7 {[%clk 0:00:20.4]} 36. Rxg7+ {[%clk
0:00:15.2]} 36... Kxg7 {[%clk 0:00:20.5]} 37. Qc3+ {[%clk 0:00:15.4]} 37... Re5
{[%clk 0:00:19.7]} 38. Qc7+ {[%clk 0:00:15.2]} 38... Kh6 {[%clk 0:00:16.6]} 39.
Qxd8 {[%clk 0:00:15.3]} 39... g1=Q {[%clk 0:00:16]} 40. Qh8+ {[%clk 0:00:14.8]}
40... Kg5 {[%clk 0:00:15.9]} 41. Qg7+ {[%clk 0:00:14.7]} 41... Kxf5 {[%clk
0:00:16]} 42. Qxg1 {[%clk 0:00:14.9]} 42... Ne6 {[%clk 0:00:14.4]} 43. Qg4+
{[%clk 0:00:13.9]} 43... Kf6 {[%clk 0:00:14.6]} 44. a4 {[%clk 0:00:12.5]} 44...
Ng5+ {[%clk 0:00:13]} 45. Kg2 {[%clk 0:00:11.9]} 45... Ne4 {[%clk 0:00:12.1]}
46. a5 {[%clk 0:00:11]} 46... Rg5 {[%clk 0:00:11.7]} 47. a6 {[%clk 0:00:11.2]}
47... Rxg4+ {[%clk 0:00:11.1]} 48. hxg4 {[%clk 0:00:12.1]} 1-0